Cogmind - Beta 13 @@@ ROGUE MODE // 2024.04.09 @ 18:20:28 Player: robocop Result: Destroyed by D-53 Grenadier with Mini Grenade Launcher Performance ------------- Evolutions (0) 0 Regions Visited (4) 800 Robots Destroyed (8) 40 Value Destroyed (223) 223 Prototype IDs (0) 0 Alien Tech Used (0) 0 Bonus (32) 32 TOTAL SCORE: 1095 Bonus ------- Follower Combat Kills 32 Cogmind --------- Core Integrity 0/250 Matter 272/300 Energy 97/100 System Corruption 0% Temperature Cool (0) Movement Treading (160) Location -9/Mines Parts ------- > --- POWER (1) -------- (None) > --- PROPULSION (2) --- Light Treads > --- UTILITY (2) ------ Improved Heat Sink Medium Storage Unit > --- WEAPON (2) ------- Light Assault Rifle Heavy Battle Rifle > --- INVENTORY (10) --- Ion Engine Light Ion Engine Light Nuclear Core Light Treads Aluminum Leg Aluminum Leg Assault Rifle Light Assault Rifle Grenade Launcher Peak State ------------ > --- POWER ------------ Light Angular Momentum Engine > --- PROPULSION ------- Light Treads Light Treads > --- UTILITY ---------- Improved Heat Sink Small Storage Unit > --- WEAPON ----------- Light Assault Rifle Heavy Battle Rifle > --- INVENTORY -------- Ion Engine Ion Engine Light Ion Engine Light Nuclear Core Aluminum Leg Aluminum Leg Assault Rifle Light Assault Rifle [Rating: 17] Favorites ----------- Power Light Angular Momentum Engine Engine Light Angular Momentum Engine Propulsion Light Treads Treads Light Treads Utility Small Storage Unit Device Improved Heat Sink Storage Small Storage Unit Weapon Light Assault Rifle Energy Gun EM Pulse Gun Ballistic Gun Light Assault Rifle Build | -11 -10 -10 -10 -9 ------- Run | Yrd Mat Min Exi Min Slots Evolved . | . . . . . Power . | . . . . . Propulsion . | . . . . . Utility . | . . . . . Weapon . | . . . . . Parts Attached 13 | 6 . 5 1 1 Power 3 | 1 . 2 . . Engine 3 | 1 . 2 . . Core . | . . . . . Reactor . | . . . . . Propulsion 3 | 2 . . . 1 Treads 3 | 2 . . . 1 Leg . | . . . . . Wheel . | . . . . . Hover . | . . . . . Flight . | . . . . . Utility 3 | 1 . 1 1 . Device 1 | . . 1 . . Storage 2 | 1 . . 1 . Processor . | . . . . . Hackware . | . . . . . Protection . | . . . . . Artifact . | . . . . . Weapon 4 | 2 . 2 . . Energy Gun 1 | 1 . . . . Energy Cannon . | . . . . . Ballistic Gun 3 | 1 . 2 . . Ballistic Cannon . | . . . . . Launcher . | . . . . . Special Weapon . | . . . . . Impact Weapon . | . . . . . Slashing Weapon . | . . . . . Piercing Weapon . | . . . . . Special Melee Weapon . | . . . . . Unidentified Prototypes . | . . . . . Parts Lost 3 | . . 1 . 2 Power 1 | . . . . 1 Propulsion 1 | . . . . 1 Utility . | . . . . . Weapon 1 | . . 1 . . Highest Loss Streak 2 | . . 1 . 2 To Critical Strikes . | . . . . . Average Slot Usage (%) 97 | . 85 98 100 97 Engine 13 | . 14 14 14 12 Treads 27 | . 28 28 28 26 Device 11 | . . 12 14 14 Storage 14 | . 14 14 14 14 Energy Gun 2 | . 14 1 . . Ballistic Gun 25 | . 14 26 28 28 Naked Turns . | . . . . . Heaviest Build 25 | 12 12 20 25 25 Greatest Support 40 | 40 40 40 40 40 Greatest Overweight (x) 1 | 1 . . . . Average Overweight (x) . | . . . . . Largest Inventory Capacity 10 | 8 8 8 10 10 Average Capacity 8 | 7 8 8 8 10 Most Carried 9 | 3 3 8 8 9 Average Carried 6 | 1 3 7 8 8 Final Capacity 10 | 8 8 8 10 10 Final Carried 9 | 3 3 8 8 9 Class Distribution -------------------- 100% | Mutant Dominant Class ---------------- Mutant | -10/Materials Mutant | -10/Mines Mutant | -10/Exiles Mutant | -9/Mines Resources | -11 -10 -10 -10 -9 ----------- Run | Yrd Mat Min Exi Min Matter Collected 428 | 186 . 232 . 10 Remotely . | . . . . . Salvage Created 241 | . . 205 . 36 Parts 8 | . . 8 . . Haulers Intercepted . | . . . . . Recyclers Shooed 1 | . . 1 . . Parts Field Recycled . | . . . . . Retrieved Matter . | . . . . . Parts Self-Destructed . | . . . . . Prevented . | . . . . . Kills | -11 -10 -10 -10 -9 ------- Run | Yrd Mat Min Exi Min Combat Hostiles Destroyed 7 | . . 6 . 1 Guns 7 | . . 6 . 1 Classes Destroyed 4 | . . 3 . 1 Tunneler 1 | . . 1 . . Swarmer 2 | . . 2 . . Grunt 4 | . . 4 . . Duelist 1 | . . . . 1 Best Kill Streak 3 | . . 3 . 1 Combat Bots Only 2 | . . 2 . 1 Max Kills in Single Turn 1 | . . 1 . 1 Gunslinging . | . . . . . Exploded . | . . . . . Melee . | . . . . . Uniques/NPCs Destroyed . | . . . . . Combat | -11 -10 -10 -10 -9 -------- Run | Yrd Mat Min Exi Min Hostile Shots Fired 73 | . . 56 . 17 Missed 13 | . . 10 . 3 Damage Taken 1008 | . . 523 . 485 Core 251 | . . 101 . 150 Absorbed by Shields . | . . . . . Core Remaining (%) 100 | 100 . . . . Volleys Fired 37 | . . 30 . 7 Largest 2 | . . 2 . 2 Hottest 60 | . . 60 . 53 Shots Fired 73 | . . 59 . 14 Gun 73 | . . 59 . 14 Cannon . | . . . . . Launcher . | . . . . . Special . | . . . . . Kinetic 67 | . . 53 . 14 Thermal . | . . . . . Explosive . | . . . . . Electromagnetic 6 | . . 6 . . Robot Hit Streak 11 | . . 11 . 11 Robot Miss Streak 3 | . . 3 . 2 Penetration Max . | . . . . . Secondary Targets 1 | . . 1 . . Max Gunslinging Chain 1 | . . 1 . . Shots Hit Robots 52 | . . 40 . 12 Core Hits 17 | . . 14 . 3 Critical Kills . | . . . . . Critical Parts Destroyed 1 | . . . . 1 Critical Strikes 1 | . . . . 1 Destroy 1 | . . . . 1 Melee Attacks . | . . . . . Impact . | . . . . . Slashing . | . . . . . Piercing . | . . . . . Sneak Attacks . | . . . . . Combat Hostiles . | . . . . . Follow-up Attacks . | . . . . . Damage Inflicted 709 | . . 545 . 164 Guns 709 | . . 545 . 164 Cannons . | . . . . . Explosions . | . . . . . Melee . | . . . . . Ramming . | . . . . . Kinetic 682 | . . 518 . 164 Thermal . | . . . . . Explosive . | . . . . . Electromagnetic 27 | . . 27 . . Impact . | . . . . . Slashing . | . . . . . Piercing . | . . . . . Highest Corruption . | . . . . . Average Corruption . | . . . . . Corruption Purged . | . . . . . Corruption Blocked . | . . . . . Overload Shots . | . . . . . Overflow Damage . | . . . . . Projectiles . | . . . . . Explosions . | . . . . . Melee . | . . . . . Knockbacks . | . . . . . Impact . | . . . . . Kinetic . | . . . . . Secondary . | . . . . . Self-Inflicted Damage . | . . . . . Shots . | . . . . . Rammed . | . . . . . Targets Rammed . | . . . . . Kicked . | . . . . . Crushed . | . . . . . Highest Temperature 51 | . . 51 . . Average Temperature 25 | . . 25 . . Received Heat Transfer 279 | . . 255 . 24 Siege Activations . | . . . . . Robots Corrupted . | . . . . . Combat Hostiles . | . . . . . Parts Fried . | . . . . . Impact Corruptions . | . . . . . Robots Melted . | . . . . . Combat Hostiles . | . . . . . Parts Melted . | . . . . . Heat Transferred . | . . . . . Parts Sabotaged . | . . . . . Parts Stolen . | . . . . . Parts Stripped . | . . . . . Power Chain Reactions . | . . . . . Alert | -11 -10 -10 -10 -9 ------- Run | Yrd Mat Min Exi Min Peak Influence 176 | . 20 176 . 30 Initial 7 | . . 7 . . Average 27 | . 8 35 . 3 Maximum Alert Level . | . . . . . Low Security (%) 100 | 100 100 100 . 100 Level 1 . | . . . . . Level 2 . | . . . . . Level 3 . | . . . . . Level 4 . | . . . . . Level 5 . | . . . . . High Security . | . . . . . Max Security . | . . . . . Squads Dispatched 3 | . 2 1 . . Investigation 1 | . 1 . . . Extermination . | . . . . . Reinforcement 1 | . 1 . . . Assault 1 | . . 1 . . Garrison . | . . . . . Intercept . | . . . . . Searches Triggered . | . . . . . Construction Impeded . | . . . . . Haulers Reinforced . | . . . . . Active Scanning Responses . | . . . . . Cargo Convoy Interrupts . | . . . . . Stealth | -11 -10 -10 -10 -9 --------- Run | Yrd Mat Min Exi Min Distress Signals . | . . . . . Communications Jammed . | . . . . . Distress Signals . | . . . . . Times Spotted 18 | . 1 13 . 4 Peak Tracking Total 4 | . 1 4 . 4 Tactical Retreats . | . . . . . Traps | -11 -10 -10 -10 -9 ------- Run | Yrd Mat Min Exi Min Traps Triggered . | . . . . . Indirectly . | . . . . . Trap Hack Attempts . | . . . . . Triggered . | . . . . . Disarmed . | . . . . . Reprogrammed . | . . . . . Reused . | . . . . . Traps Extracted . | . . . . . Installed . | . . . . . Triggered . | . . . . . Machines | -11 -10 -10 -10 -9 ---------- Run | Yrd Mat Min Exi Min Machines Disabled . | . . . . . Max in Single Turn . | . . . . . Machines Repaired . | . . . . . Machines Dismantled . | . . . . . Machines Sabotaged . | . . . . . Overloaded Fab Kills . | . . . . . Hacking | -11 -10 -10 -10 -9 --------- Run | Yrd Mat Min Exi Min Machines Accessed 1 | . 1 . . . Terminals 1 | . 1 . . . Fabricators . | . . . . . Repair Stations . | . . . . . Recycling Units . | . . . . . Scanalyzers . | . . . . . Garrison Access . | . . . . . Total Hacks 2 | . 2 . . . Successful 2 | . 2 . . . Failed . | . . . . . Catastrophic . | . . . . . Database Lockouts . | . . . . . Manual 3 | . 3 . . . Terminals 2 | . 2 . . . Fabricators . | . . . . . Repair Stations . | . . . . . Recycling Units . | . . . . . Scanalyzers . | . . . . . Garrison Access . | . . . . . Terminal Hacks . | . . . . . Fabricator Hacks . | . . . . . Repair Station Hacks . | . . . . . Recycling Unit Hacks . | . . . . . Scanalyzer . | . . . . . Garrison Access Hacks . | . . . . . Unauthorized Hacks 2 | . 2 . . . Terminals 2 | . 2 . . . Track 1 | . 1 . . . Botnet 1 | . 1 . . . Fabricators . | . . . . . Repair Stations . | . . . . . Recycling Units . | . . . . . Scanalyzers . | . . . . . Garrison Access . | . . . . . Data Cores Recovered . | . . . . . Used . | . . . . . Hacking Detections 1 | . 1 . . . Full Trace Events 1 | . 1 . . . Feedback Events . | . . . . . Feedback Blocked . | . . . . . Robot Schematics Acquired . | . . . . . Robots Built . | . . . . . Authchips . | . . . . . Time . | . . . . . Total Robot Build Rating . | . . . . . Part Schematics Acquired . | . . . . . Parts Built . | . . . . . Authchips . | . . . . . Time . | . . . . . Total Part Build Rating . | . . . . . Parts Repaired . | . . . . . Time . | . . . . . Parts Recycled . | . . . . . Recycled Matter . | . . . . . Retrieved Matter . | . . . . . Retrieved Components . | . . . . . Parts Scanalyzed . | . . . . . Part Schematics Acquired . | . . . . . Parts Damaged . | . . . . . Bothacking | -11 -10 -10 -10 -9 ------------ Run | Yrd Mat Min Exi Min Used RIF Installer . | . . . . . Robots Hacked . | . . . . . Non-combat . | . . . . . Combat . | . . . . . Robot Hacks Applied . | . . . . . Relay Couplers Released . | . . . . . Fabnet Peak Effective % . | . . . . . Robots Rewired . | . . . . . Allies Hacked . | . . . . . Hacks Repelled . | . . . . . Allies | -11 -10 -10 -10 -9 -------- Run | Yrd Mat Min Exi Min Total Allies 1 | . . 1 . . Largest Group 1 | . . 1 . . Highest-Rated Group 31 | . . 31 . . Highest-Rated Ally 31 | . . 31 . . Total Orders . | . . . . . Ally Attacks 10 | . . 10 . . Total Damage 126 | . . 126 . . Kills 2 | . . 2 . . Allies Corrupted . | . . . . . Allies Melted . | . . . . . Intel | -11 -10 -10 -10 -9 ------- Run | Yrd Mat Min Exi Min Robot Analysis Total . | . . . . . Derelict Logs Recovered 1 | . . 1 . . Drone Launches . | . . . . . Drone Recoveries . | . . . . . Exploration | -11 -10 -10 -10 -9 ------------- Run | Yrd Mat Min Exi Min Turns Passed 2034 | 79 217 1152 490 96 Spaces Moved 1153 | 45 120 634 306 48 Core 4 | 4 . . . . Treads 1149 | 41 120 634 306 48 Legs . | . . . . . Wheels . | . . . . . Hover . | . . . . . Flight . | . . . . . Fastest Speed 50 | 50 160 160 160 160 Average Speed 159 | 151 160 160 160 160 Slowest Speed 160 | 160 160 160 160 160 Overloaded Moves . | . . . . . Propulsion Burnouts . | . . . . . Robots Hopped . | . . . . . Cave-ins Triggered . | . . . . . Exploration Rate (%) 44 | 4 23 98 75 22 Regions Visited 4 Branch Regions 3 Pre-discovered Areas 1 | . . 1 . . Known Exits Taken . | . . . . . Unknown Exits Taken 4 | 1 1 1 1 . Scrap Searched 2 | . . 1 . 1 Spaces Dug . | . . . . . Terrain Destroyed . | . . . . . Melee . | . . . . . Projectile . | . . . . . AOE . | . . . . . Terrain Rammed . | . . . . . Walls Destroyed . | . . . . . Machines Disabled . | . . . . . Actions | -11 -10 -10 -10 -9 --------- Run | Yrd Mat Min Exi Min Total 1277 | 53 145 716 307 56 Wait 68 | . 26 42 . . Move 1149 | 44 119 633 305 48 Hop . | . . . . . Pick Up 7 | 3 . 4 . . Fast Attach 8 | 6 . 2 . . Attach 1 | . . 1 . . Detach 1 | . . 1 . . Swap 4 | . . 2 1 1 Drop 2 | . . 1 1 . Fire 37 | . . 30 . 7 Melee . | . . . . . Ram . | . . . . . Kick . | . . . . . Crush . | . . . . . Escape Stasis . | . . . . . Rewire . | . . . . . Trap . | . . . . . Miscellaneous . | . . . . . Route ------- -11/Scrapyard -10/Materials (discovered 2 exits: [*Mat] / [*Min]) -10/Mines (discovered 4 exits: [*Mat x2] / *Exi / [*Sub]) -10/Exiles -9/Mines History --------- Turn | Location | Event 2 | -11/Scrapyard | Discovered new exit (range 16) 80 | -11/Scrapyard | Entered Materials 98 | -10/Materials | Discovered new exit (range 15) 241 | -10/Materials | Discovered new exit (range 3) 297 | -10/Materials | Entered Mines 298 | -10/Mines | Met a Derelict testing a Signal Generator 309 | -10/Mines | Build established: Mutant 505 | -10/Mines | A weapon hastily lodged in a ceiling crevice suddenly fell to the ground 552 | -10/Mines | Learned location of Storage (-9) 628 | -10/Mines | Discovered new exit (range 10) 761 | -10/Mines | Deemed a non-threat by the Exiles lab entrance 761 | -10/Mines | Discovered new exit (range 5) 860 | -10/Mines | YI-UF0 nonchalantly dropped a Grenade Launcher on the ground 1201 | -10/Mines | Discovered new exit (range 15) 1261 | -10/Mines | Discovered new exit (range 14) 1449 | -10/Mines | Entered Exiles 1449 | -10/Exiles | Found Exiles lab abandoned 1918 | -10/Exiles | Discovered new exit (range 15) 1939 | -10/Exiles | Entered Mines 2008 | -9/Mines | Assembled infested the area 2016 | -9/Mines | Core integrity fell below 50% 2033 | -9/Mines | Core integrity fell below 20% 2035 | -9/Mines | Destroyed by D-53 Grenadier with Mini Grenade Launcher Last Messages --------------- payload. 02013_ D-53 Grenadier unfolds itself. 02018_ R-06 Scavenger destroyed. 02019_ The unstable cave ceiling collapses. 02020_ U-05 Engineer lays Concrete. 02020_ Lgt. Treads destroyed. 02021_ The unstable cave ceiling collapses. 02021_ U-05 Engineer lays Concrete. 02022_ The unstable cave ceiling collapses. 02023_ U-05 Engineer builds a Wall. 02024_ Lgt. Angular Momentum Engine destroyed. 02026_ L-31 Rogue suffers critical hit (Destroy). 02026_ Destroyed Imp. Aluminum Leg. 02027_ U-05 Engineer lays Concrete. 02029_ L-31 Rogue destroyed. 02030_ The unstable cave ceiling collapses. 02032_ Destroyed Sml. Laser. 02032_ U-05 Engineer builds a Wall. 02035_ Destroyed Shock Absorption System. Map ----- +----------------------------------------------------+ | | | | | | | | | | | | | | | | | | | | | | | | | | | ?????????????????????????????????????????????????? | | ?????????????????????????????????????????????????? | | ?????????????###?????????????????????????????????? | | ???????#????## #????????????????????????????????? | | ??????? ???# ????????????????????????????????? | | ???????? ### ????????????????????????????????? | | ??## ???? ????????????????????????????????? | | ### ???"" #????#######??????????? ???????? | | ??"" ##### #####???? ????????? | | """ # ### " ""?????????? | | ## ## % """????????? | | # ????# du """????????? | | ???????# @ d g ?????? | | ???????## ##????????????? | | ??# #??????## # ###?????????????? | | ???# ###?### ## # #???????????????? | | ????# ### ### # # ##???????????????? | | ?????# ##?# ? #???????????????? | | ?????## ##??# """ """? #???????????????? | | ??????### # ##???#?""" """ #???????????????? | | ????????### #####??????""" """ #???????????????? | | ??????????# #?????????? ?? #???????????????? | | ??????????# #????????????? "????#???????????????? | | ?????###### #????????????? "????????????????????? | | ?????# #??????????????"????????????????????? | | ?????## #???????????????????????????????????? | | ??###?# #???????????????????????????????????? | | ?## ## ##??????????????????????????????????? | | ?# ###????????????????????????????????? | | ?# ##???????????????????????????????? | | ## #???????????????????????????????? | | # #???????????????????????????????? | | # #???????????????????????????????? | | ## ##???????????????????????????????? | | ?### ##????????????????????????????????? | | ???## ##?????????????????????????????????? | | ????## ##??????????????????????????????????? | +----------------------------------------------------+ Best States ------------- Heat Dissipation 39 Energy Generation 18 Energy Capacity 250 Matter Stores 300 Matter Capacity 300 Sight Range 16 Terrain Scan Density 10 Evasion (%) 40 Recoil Reduction 2 Item Schematics ----------------- None Robot Schematics ------------------ None Fabricated ------------ Nothing Alien Tech Used ----------------- None Achievements -------------- True Hacker Challenges ------------ None Game ------ Seed SalvageCommCoupler Manual? 0 Play Time 00:11:38 Cumulative 14.7 hours Start 2024.04.09 @ 18:08:01 End 2024.04.09 @ 18:20:28 Sessions 1 Manual Loads 0 Difficulty Rogue Special Mode None Game No. 21 Rogue 21 Adventurer 0 Explorer 0 Win Type - Total 0 Types 0/0/0/0/0/0/0/0/0 Lore% 7 Gallery% 22 Achievement% 20 Wizard Run 0 Options --------- Layout 1 ASCII 0 Keyboard 0 Movement Mouse Keybinds 0 Fullscreen 2 Font 32/SmallcapsGlow Map View 50x35 Zoom Use 0% Tactical HUD 1 Map Filters NONE Filters NONE Steam 1 RUN: 706ea9a0-7c91-442f-a20a-9d066110c5df